Cogmind - Beta 16 @@@ ROGUE MODE // 2025.12.10 @ 21:23:31 Player: JuustuToug Result: Destroyed by G-47 Trooper with Particle Gun Performance ------------- Evolutions (3) 1500 Regions Visited (11) 2200 Robots Destroyed (109) 545 Value Destroyed (5040) 5040 Prototype IDs (26) 520 Alien Tech Used (0) 0 Bonus (1844) 1844 TOTAL SCORE: 11649 Bonus ------- High Alert Combat Kills 506 Follower Combat Kills 338 Entered Garrisons 400 Aligned with FarCom 300 Acquired ECA 300 Cogmind --------- Core Integrity 0/700 Matter 288/300 Energy 60/100 System Corruption 26% Temperature Cool (9) Movement Core (50) Location -7/Lower Caves Parts ------- > --- POWER (1) -------- (None) > --- PROPULSION (4) --- (None) > --- UTILITY (6) ------ Improved Sensor Array Improved Melee Analysis Suite > --- WEAPON (2) ------- (None) > --- INVENTORY (5) ---- Deuterium Engine Faulty Experimental Sensor Array Encrypted Comm Array Microactuators Force Booster Peak State ------------ > --- POWER ------------ Light Angular Momentum Engine > --- PROPULSION ------- Aluminum Leg Aluminum Leg Aluminum Leg Carbon-fiber Leg > --- UTILITY ---------- Advanced Heat Sink Large Storage Unit Machine Analyzer Improved Sensor Array Core Analyzer Improved Medium Armor Plating > --- WEAPON ----------- Plasma Cannon Powered Hammer > --- INVENTORY -------- Micro Nuclear Core Aluminum Leg Improved Heat Sink Experimental Sensor Array Improved Signal Interpreter Terrain Scan Processor Microactuators Improved Medium Armor Plating Improved Medium Armor Plating Chronowheel Heavy Laser Light Assault Rifle Heavy Assault Rifle Heavy Assault Rifle Powered Hammer [Rating: 45] Favorites ----------- Power Ion Engine Engine Ion Engine Power Core Light Nuclear Core Propulsion Light Treads Treads Light Treads Leg Aluminum Leg Hover Unit Gravmag System Utility Large Storage Unit Device Improved Sensor Array Storage Large Storage Unit Processor Core Analyzer Protection Improved Light Armor Plating Weapon Autogun Energy Gun Medium Laser Energy Cannon Beam Cannon Ballistic Gun Autogun Ballistic Cannon Flak Cannon Launcher Mini Grenade Launcher Impact Weapon Great Maul Slashing Weapon Axe Build | -11 -10 -10 -10 -9 -8 -8 -8 -8 -7 -7 -7 ------- Run | Yrd Mat Min Exi Min Mat Gar Mat Gar Fac Low Low Slots Evolved 6 | . . . . . 4 . . . 2 . . Power . | . . . . . . . . . . . . Propulsion 2 | . . . . . 2 . . . . . . Utility 4 | . . . . . 2 . . . 2 . . Weapon . | . . . . . . . . . . . . Parts Attached 90 | 7 10 8 2 2 8 6 . 20 17 9 1 Power 13 | 1 3 1 . . 1 2 . 3 1 1 . Engine 9 | 1 3 1 . . 1 1 . 1 1 . . Core 4 | . . . . . . 1 . 2 . 1 . Reactor . | . . . . . . . . . . . . Propulsion 26 | 2 1 1 . . 4 2 . 11 3 2 . Treads 11 | 2 1 1 . . 4 2 . . . 1 . Leg 12 | . . . . . . . . 8 3 1 . Wheel . | . . . . . . . . . . . . Hover 3 | . . . . . . . . 3 . . . Flight . | . . . . . . . . . . . . Utility 27 | 2 1 4 1 1 3 . . 2 8 4 1 Device 11 | 1 . 3 . 1 1 . . 2 1 2 . Storage 3 | 1 1 . 1 . . . . . . . . Processor 5 | . . . . . 1 . . . 4 . . Hackware . | . . . . . . . . . . . . Protection 8 | . . 1 . . 1 . . . 3 2 1 Artifact . | . . . . . . . . . . . . Weapon 24 | 2 5 2 1 1 . 2 . 4 5 2 . Energy Gun 2 | 1 . . . . . . . 1 . . . Energy Cannon 2 | . 1 . . . . . . . 1 . . Ballistic Gun 9 | 1 3 2 . . . . . 3 . . . Ballistic Cannon 1 | . . . . . . 1 . . . . . Launcher 2 | . . . . 1 . . . . . 1 . Special Weapon . | . . . . . . . . . . . . Impact Weapon 4 | . 1 . . . . 1 . . 1 1 . Slashing Weapon 4 | . . . 1 . . . . . 3 . . Piercing Weapon . | . . . . . . . . . . . . Special Melee Weapon . | . . . . . . . . . . . . Unidentified Prototypes 1 | . . 1 . . . . . . . . . Parts Lost 47 | . . 6 . 1 4 8 . 6 6 13 3 Power 6 | . . . . . 2 1 . 1 . 2 . Propulsion 19 | . . 2 . 1 1 5 . 3 3 3 1 Utility 12 | . . 2 . . . 2 . 1 2 4 1 Weapon 10 | . . 2 . . 1 . . 1 1 4 1 Highest Loss Streak 10 | . . 2 . 1 4 2 . 3 2 10 3 To Critical Strikes 1 | . . . . . . . . . 1 . . Average Backups 11 | 2 9 9 10 9 8 10 13 13 14 13 10 Power 1 | . 1 1 1 1 . . 1 . 1 1 1 Propulsion . | . 1 . . . . . . 1 2 . . Utility 4 | . 2 3 4 3 2 3 4 3 5 7 5 Weapon 4 | . 4 3 4 4 4 4 7 6 5 2 . Tool/Special . | . . . . . . . . . . . . Unused Backups 32 | . 6 5 . . . 1 . 4 8 1 7 Power 6 | . 1 2 . . . . . . 1 . 2 Propulsion 3 | . 1 . . . . . . . 2 . . Utility 13 | . 3 2 . . . . . 3 1 . 4 Weapon 9 | . 1 1 . . . 1 . 1 4 1 . Tool/Special 1 | . . . . . . . . . . . 1 Average Slot Usage (%) 85 | . 100 97 85 96 72 81 54 74 97 58 44 Engine 7 | . 14 14 14 14 7 4 9 1 6 . . Core 1 | . . . . . . 3 . 7 . 2 . Treads 15 | . 28 27 28 24 15 24 9 . . 2 6 Leg 8 | . . . . . . . . 24 29 2 . Device 11 | . 14 8 . 12 17 14 9 9 14 6 7 Storage 10 | . 14 14 14 14 9 9 9 9 7 7 6 Processor 4 | . . . . . . . . . 14 16 7 Protection 4 | . . 3 14 1 7 7 . . 6 6 6 Energy Cannon 3 | . 12 4 . . . . . . 4 . . Ballistic Gun 7 | . 11 22 . 24 13 2 . 7 1 . . Launcher 1 | . . . . 2 1 6 9 2 . . . Impact Weapon 3 | . 3 . . . . 2 9 7 5 5 6 Slashing Weapon 3 | . . . 14 1 1 6 . . 2 5 . Peak Build Rating 45 | 7 10 17 17 18 27 31 16 30 45 41 23 Average Rating 22 | 5 8 10 15 15 21 25 16 21 40 29 21 On Entrance 16 | . 7 8 14 17 15 25 16 16 26 37 22 Avg Prop Armor Cover (%) 10 | . . . . . . . . 10 . . . Naked Turns . | . . . . . . . . . . . . Heaviest Build 52 | 15 22 26 35 36 39 35 29 34 52 43 48 Greatest Support 80 | 40 40 40 40 40 80 80 20 43 45 20 20 Greatest Overweight (x) 15 | . . . . 1 1 1 1 9 1 13 15 Average Overweight (x) . | . . . . . . . 1 . . 3 1 Largest Inventory Capacity 15 | 8 10 10 15 15 15 15 15 15 15 15 15 Average Capacity 13 | 7 9 10 13 15 15 15 15 15 15 15 14 Most Carried 15 | 4 10 10 13 12 12 15 15 15 15 15 11 Average Carried 11 | 2 9 9 11 11 10 12 15 14 14 13 10 Final Capacity 15 | 8 10 10 15 15 15 15 15 15 15 15 5 Final Carried 15 | 4 10 9 13 11 10 15 15 14 15 11 5 Class Distribution -------------------- 40% | Mutant 36% | Scavenger-Mutant 8% | Gladiator 7% | Assassin 4% | Skirmisher Dominant Class ---------------- Mutant | -10/Materials Mutant | -10/Mines Mutant | -10/Exiles Skirmisher | -9/Mines Mutant | -8/Materials Assassin | -8/Garrison Scavenger-Mutant | -8/Materials Scavenger-Mutant | -8/Garrison Scavenger-Mutant | -7/Factory Gladiator | -7/Lower Caves Mutant | -7/Lower Caves Resources | -11 -10 -10 -10 -9 -8 -8 -8 -8 -7 -7 -7 ----------- Run | Yrd Mat Min Exi Min Mat Gar Mat Gar Fac Low Low Matter Collected 2703 | 279 303 558 . 74 60 512 . 426 235 210 46 Remotely . | . . . . . . . . . . . . Salvage Created 3226 | 58 574 420 . 203 199 555 . 438 499 217 63 Parts 181 | 8 33 23 . 10 10 38 . 29 25 2 3 Haulers Intercepted 3 | . 2 . . . 1 . . . . . . Recyclers Shooed 3 | 1 2 . . . . . . . . . . Parts Field Recycled . | . . . . . . . . . . . . Retrieved Matter . | . . . . . . . . . . . . Parts Self-Destructed 5 | . . . . . . . . . . 2 3 Prevented 1 | . . . . . . . . . . 1 . Parts Restored . | . . . . . . . . . . . . Kills | -11 -10 -10 -10 -9 -8 -8 -8 -8 -7 -7 -7 ------- Run | Yrd Mat Min Exi Min Mat Gar Mat Gar Fac Low Low Combat Hostiles Destroyed 100 | . 14 19 . 6 5 25 . 14 9 7 1 Melee 25 | . . 1 . 1 . 5 . 4 9 4 1 Guns 22 | . 3 14 . . . . . 5 . . . Cannons 14 | . 11 3 . . . . . . . . . AOE 33 | . . . . 5 5 18 . 3 . 2 . Classes Destroyed 16 | 1 5 2 . . 2 3 . 1 2 . . Worker 3 | . . . . . 1 . . . 2 . . Builder 6 | . 1 1 . 1 1 . . . 2 . . Tunneler 4 | 3 . 1 . . . . . . . . . Hauler 3 | . 2 . . . 1 . . . . . . Recycler 1 | . . 1 . . . . . . . . . Mechanic 1 | . . . . . . . . . 1 . . Watcher 2 | . 2 . . . . . . . . . . Swarmer 26 | . 6 6 . . . 5 . 4 2 3 . Cutter 2 | . . . . . . . . 2 . . . Saboteur 3 | . . . . . . 3 . . . . . Grunt 47 | . 8 2 . 6 4 13 . 6 4 3 1 Brawler 3 | . . . . . . 1 . 1 . 1 . Duelist 2 | . . . . . 1 . . 1 . . . Sentry 3 | . . . . . . 3 . . . . . Programmer 3 | . . . . . . . . . 3 . . Assembled 11 | . . 11 . . . . . . . . . Best Kill Streak 8 | 2 4 5 . 3 8 3 . 3 4 3 1 Combat Bots Only 5 | . 3 5 . 3 5 3 . 3 4 3 1 Max Kills in Single Turn 3 | 1 1 2 . 2 3 3 . 1 1 1 1 Gunslinging 1 | . . 1 . . . . . . . . . Exploded 3 | . . . . 2 2 3 . 1 . 1 . Melee 1 | . . 1 . 1 . 1 . 1 1 1 1 Uniques/NPCs Destroyed . | . . . . . . . . . . . . Combat | -11 -10 -10 -10 -9 -8 -8 -8 -8 -7 -7 -7 -------- Run | Yrd Mat Min Exi Min Mat Gar Mat Gar Fac Low Low Hostile Shots Fired 692 | . 46 81 . 27 77 111 . 88 90 111 61 Missed 188 | . 6 23 . 9 21 29 . 31 31 28 10 Hits 504 | . 40 58 . 18 56 82 . 57 59 83 51 Melee 16 | . . 7 . . . . . . 1 8 . Projectile 488 | . 40 51 . 18 56 82 . 57 58 75 51 AOE 1 | . . . . . . . . 1 . . . Critical Strikes 20 | . 1 . . . 5 3 . 2 4 5 . Part Disruptions 2 | . . 2 . . . . . . . . . Damage Taken 7842 | . 467 850 . 318 854 1362 . 748 911 1506 826 Core 1347 | . 52 163 . 19 91 207 . 113 112 317 273 Absorbed by Shields . | . . . . . . . . . . . . Regen/Repaired (Parts) 11 | . . . . . . . . . 11 . . Core Remaining (%) 43 | 100 . . . 6 . . . 25 . . . Volleys Fired 178 | 4 42 60 . 5 10 31 . 21 1 3 1 Largest 2 | 2 2 2 . 1 2 2 . 2 2 1 1 Hottest 83 | 70 83 83 . 30 43 40 . 43 43 39 80 Shots Fired 298 | 8 84 115 . 6 12 33 . 34 2 3 1 Gun 203 | 8 48 105 . 1 4 4 . 31 2 . . Cannon 47 | . 36 10 . . . . . . . . 1 Launcher 48 | . . . . 5 8 29 . 3 . 3 . Special . | . . . . . . . . . . . . Kinetic 199 | 4 48 105 . 1 4 4 . 31 2 . . Thermal 51 | 4 36 10 . . . . . . . . 1 Explosive 48 | . . . . 5 8 29 . 3 . 3 . Electromagnetic . | . . . . . . . . . . . . Robot Hit Streak 10 | 3 10 8 . 3 7 8 . 7 8 9 . Robot Miss Streak 4 | 2 2 4 . . . 1 . 4 . 1 1 Penetration Max . | . . . . . . . . . . . . Secondary Targets 5 | . . 4 . . 1 . . . . . . Max Gunslinging Chain 1 | . . 1 . . 1 . . . . . . Shots Hit Robots 248 | 4 54 69 . 7 4 27 . 31 39 12 1 Core Hits 158 | 4 21 30 . 13 15 40 . 15 12 7 1 Critical Kills 3 | . 1 . . . . . . 2 . . . Critical Parts Destroyed 8 | . . . . . . 3 . 3 2 . . Critical Strikes 16 | . 1 . . 1 . 4 . 5 5 . . Destroy 1 | . 1 . . . . . . . . . . Smash 10 | . . . . . . 3 . 5 2 . . Sever 5 | . . . . 1 . 1 . . 3 . . Melee Attacks 179 | . 7 7 . 4 1 40 . 35 69 14 2 Impact 101 | . 7 7 . . . 11 . 35 27 12 2 Slashing 78 | . . . . 4 1 29 . . 42 2 . Piercing . | . . . . . . . . . . . . Sneak Attacks 9 | . . 1 . . . 1 . . 6 1 . Combat Hostiles 2 | . . 1 . . . . . . . 1 . Follow-up Attacks 4 | . . . . . . . . . 3 1 . Damage Inflicted 9630 | 47 923 1116 . 526 769 2602 . 916 1762 899 70 Guns 1661 | 47 430 880 . 14 40 25 . 210 15 . . Cannons 655 | . 491 139 . . . . . . . . 25 Explosions 3507 | . . . . 371 729 1855 . 124 . 428 . Melee 3789 | . . 97 . 140 . 707 . 582 1747 471 45 Ramming 18 | . 2 . . 1 . 15 . . . . . Kinetic 1661 | 47 430 880 . 14 40 25 . 210 15 . . Thermal 655 | . 491 139 . . . . . . . . 25 Explosive 3507 | . . . . 371 729 1855 . 124 . 428 . Electromagnetic . | . . . . . . . . . . . . Impact 2067 | . . 97 . . . 228 . 582 718 397 45 Slashing 1722 | . . . . 140 . 479 . . 1029 74 . Piercing . | . . . . . . . . . . . . Highest Corruption 26 | . . 10 10 10 . . . 1 7 26 26 Average Corruption 9 | . . 9 10 10 . . . 1 4 17 26 Corruption Purged . | . . . . . . . . . . . . Corruption Blocked . | . . . . . . . . . . . . Effects 135 | . . 29 21 14 . . . 3 14 42 12 Message Errors 40 | . . 12 4 5 . . . 1 5 9 4 Matter Fused 28 | . . 3 3 4 . . . 2 4 11 1 Heat Flow Errors 14 | . . . 5 . . . . . 2 4 3 Energy Discharges 20 | . . 3 3 1 . . . . 1 10 2 Parts Rejected 2 | . . . . . . . . . . 1 1 Parts Fused 4 | . . 1 1 1 . . . . . 1 . Data Loss (minor) 17 | . . 5 5 1 . . . . 1 4 1 Data Loss (major) 5 | . . 1 . 1 . . . . 1 2 . Misfires 1 | . . . . 1 . . . . . . . Weapon Failures 4 | . . 4 . . . . . . . . . Overload Shots . | . . . . . . . . . . . . Overflow Damage 970 | . . 12 . 13 . 282 . 123 371 169 . Projectiles 30 | . . 10 . . . . . . 20 . . Explosions 120 | . . . . 7 . 91 . . . 22 . Melee 820 | . . 2 . 6 . 191 . 123 351 147 . Knockbacks 8 | . . . . . . 1 . 1 3 3 . Impact 7 | . . . . . . 1 . 1 2 3 . Kinetic . | . . . . . . . . . . . . Secondary 1 | . . . . . . . . . 1 . . Self-Inflicted Damage 508 | . . . . 136 . 237 . 10 . 125 . Shots 16 | . . . . 3 . 10 . 1 . 2 . Rammed 4 | . 1 . . 2 . 1 . . . . . Targets Rammed 5 | . 1 . . 2 . 2 . . . . . Kicked . | . . . . . . . . . . . . Crushed 1 | . . . . . . 1 . . . . . Highest Temperature 283 | 27 213 216 283 10 11 4 . . 211 245 212 Average Temperature 66 | 12 70 34 115 5 11 4 . . 103 86 93 Received Heat Transfer 2758 | . 207 181 . 57 513 549 . 225 189 378 459 Effects 4 | . 3 . . . . . . . . 1 . Energy Bleed 1 | . . . . . . . . . . 1 . Interference 3 | . 3 . . . . . . . . . . Siege Activations . | . . . . . . . . . . . . Martial Activations . | . . . . . . . . . . . . Shielding Activations . | . . . . . . . . . . . . Robots Disrupted . | . . . . . . . . . . . . Combat Hostiles . | . . . . . . . . . . . . Robots Corrupted 7 | . . 1 . . . 2 . 2 1 1 . Combat Hostiles 6 | . . 1 . . . 2 . 2 . 1 . Parts Fried 11 | . . . . . . 3 . 2 5 1 . Impact Corruptions 23 | . . 1 . . . 4 . 4 9 5 . Robots Melted . | . . . . . . . . . . . . Combat Hostiles . | . . . . . . . . . . . . Parts Melted 2 | . 1 1 . . . . . . . . . Heat Transferred 1382 | . 1036 296 . . . . . . . . 50 Parts Sabotaged . | . . . . . . . . . . . . Parts Stolen . | . . . . . . . . . . . . Parts Stripped . | . . . . . . . . . . . . Power Chain Reactions . | . . . . . . . . . . . . Alert | -11 -10 -10 -10 -9 -8 -8 -8 -8 -7 -7 -7 ------- Run | Yrd Mat Min Exi Min Mat Gar Mat Gar Fac Low Low Maximum Alert Level 4 | . . . . . . 4 2 4 2 . . Low Security (%) 44 | 100 100 100 . 100 100 10 . . . . . Level 1 20 | . . . . . . 33 . . 58 . . Level 2 17 | . . . . . . 17 100 29 41 . . Level 3 11 | . . . . . . 21 . 56 . . . Level 4 5 | . . . . . . 17 . 14 . . . Level 5 . | . . . . . . . . . . . . High Security . | . . . . . . . . . . . . Max Security . | . . . . . . . . . . . . Peak Influence 1360 | 10 139 96 . 87 142 1360 663 1213 641 . . Initial 663 | . . 6 . . 14 62 663 424 636 . . Average 355 | 1 71 19 . 34 43 601 658 849 421 . . Influence Increases 3902 | 15 459 205 . 187 188 1418 . 869 371 160 30 Destroy 0b10 Robot/C 2060 | . 280 160 . 120 100 560 . 500 180 140 20 Destroy 0b10 Robot/NC 100 | 15 25 15 . 5 15 . . . 25 . . Destroy Leader 240 | . 48 30 . 20 22 10 . 30 50 20 10 Allied During Kill 59 | . . . . . . 33 . 26 . . . Successful Hack 60 | . 23 . . . 4 7 . . 26 . . Disable Machine 165 | . 45 . . . 30 60 . 15 15 . . Anti-Garrison Action 700 | . . . . . . 500 . 200 . . . Destroy Structure 293 | . 8 . . 42 17 158 . 53 15 . . Partial Spotted 15 | . . . . . . 15 . . . . . Lose Combat Pursuer 210 | . 30 . . . . 75 . 45 60 . . Influence Decreases 3892 | 15 443 221 . 150 129 154 707 309 1226 518 20 Entered New Map 1703 | . . 10 . . 23 34 697 229 577 133 . Time Decay 1763 | 15 443 201 . 140 69 . 10 . 589 286 10 Lost Part 366 | . . 10 . 10 37 80 . 60 60 99 10 Lost Ally 60 | . . . . . . 40 . 20 . . . Squads Dispatched 11 | . 1 1 . . 2 . . . 7 . . Investigation 3 | . 1 1 . . . . . . 1 . . Extermination 4 | . . . . . . . . . 4 . . Reinforcement 1 | . . . . . 1 . . . . . . Assault . | . . . . . . . . . . . . Garrison 3 | . . . . . 1 . . . 2 . . Intercept . | . . . . . . . . . . . . Searches Triggered . | . . . . . . . . . . . . Construction Impeded . | . . . . . . . . . . . . Haulers Reinforced . | . . . . . . . . . . . . Active Scanning Responses . | . . . . . . . . . . . . Cargo Convoy Interrupts . | . . . . . . . . . . . . Stealth | -11 -10 -10 -10 -9 -8 -8 -8 -8 -7 -7 -7 --------- Run | Yrd Mat Min Exi Min Mat Gar Mat Gar Fac Low Low Distress Signals 3 | . 2 . . . 1 . . . . . . Communications Jammed . | . . . . . . . . . . . . Distress Signals . | . . . . . . . . . . . . Times Spotted 158 | . 21 31 . 10 11 33 . 25 16 7 4 Peak Tracking Total 12 | . 3 12 . 4 6 5 . 5 3 4 4 Tactical Retreats 21 | . 1 8 . . . 5 . 3 4 . . Traps | -11 -10 -10 -10 -9 -8 -8 -8 -8 -7 -7 -7 ------- Run | Yrd Mat Min Exi Min Mat Gar Mat Gar Fac Low Low Traps Triggered 6 | . 2 . . . . 1 . 3 . . . Indirectly . | . . . . . . . . . . . . Trap Hack Attempts . | . . . . . . . . . . . . Triggered . | . . . . . . . . . . . . Disarmed . | . . . . . . . . . . . . Reprogrammed . | . . . . . . . . . . . . Reused . | . . . . . . . . . . . . Traps Extracted . | . . . . . . . . . . . . Installed . | . . . . . . . . . . . . Triggered . | . . . . . . . . . . . . Machines | -11 -10 -10 -10 -9 -8 -8 -8 -8 -7 -7 -7 ---------- Run | Yrd Mat Min Exi Min Mat Gar Mat Gar Fac Low Low Machines Disabled 21 | . 3 . . . 2 11 . 4 1 . . Max in Single Turn 2 | . 1 . . . 1 2 . 1 1 . . Garrison Relay 9 | . . . . . . 6 . 3 . . . Machines Repaired . | . . . . . . . . . . . . Machines Dismantled . | . . . . . . . . . . . . Machines Sabotaged . | . . . . . . . . . . . . Overloaded Fab Kills . | . . . . . . . . . . . . Hacking | -11 -10 -10 -10 -9 -8 -8 -8 -8 -7 -7 -7 --------- Run | Yrd Mat Min Exi Min Mat Gar Mat Gar Fac Low Low Machines Accessed 30 | . 10 1 4 . 1 4 2 2 5 1 . Terminals 18 | . 8 . . . . 4 . 2 3 1 . Fabricators 1 | . . . . . . . . . 1 . . Repair Stations 1 | . . . . . . . . . 1 . . Recycling Units 3 | . 2 . . . . . 1 . . . . Scanalyzers . | . . . . . . . . . . . . Garrison Access 2 | . . . . . 1 . 1 . . . . Total Hacks 72 | . 33 1 4 . 2 8 4 4 15 1 . Successful 38 | . 18 1 4 . 1 3 3 1 6 1 . Failed 33 | . 14 . . . 1 5 1 3 9 . . Catastrophic 4 | . . . . . . 2 . 2 . . . Database Lockouts 1 | . 1 . . . . . . . . . . Manual 38 | . 25 . 1 . . 1 1 1 9 . . Terminals 50 | . 28 . . . . 8 . 4 9 1 . Fabricators 3 | . . . . . . . . . 3 . . Repair Stations 3 | . . . . . . . . . 3 . . Recycling Units 8 | . 5 . . . . . 3 . . . . Scanalyzers . | . . . . . . . . . . . . Garrison Access 3 | . . . . . 2 . 1 . . . . Terminal Hacks 15 | . 6 1 4 . . 2 . 1 . 1 . Record 4 | . . . 3 . . . . . . 1 . Part Schematic 2 | . 2 . . . . . . . . . . Prototype ID Bank 1 | . 1 . . . . . . . . . . Open Door 2 | . . 1 . . . 1 . . . . . Level Access Points 1 | . 1 . . . . . . . . . . Branch Access Points 1 | . 1 . . . . . . . . . . Hauler Manifests 1 | . 1 . . . . . . . . . . Garrison Registry 1 | . . . . . . 1 . . . . . Security Stations 1 | . . . . . . . . 1 . . . Proto ID Catalog 1 | . . . 1 . . . . . . . . Fabricator Hacks 1 | . . . . . . . . . 1 . . Load Schematic 1 | . . . . . . . . . 1 . . Repair Station Hacks 2 | . . . . . . . . . 2 . . Scan Component 1 | . . . . . . . . . 1 . . Repair 1 | . . . . . . . . . 1 . . Recycling Unit Hacks 3 | . 2 . . . . . 1 . . . . Retrieve Components 3 | . 2 . . . . . 1 . . . . Scanalyzer . | . . . . . . . . . . . . Garrison Access Hacks 2 | . . . . . 1 . 1 . . . . Unlock Access 2 | . . . . . 1 . 1 . . . . Unauthorized Hacks 15 | . 10 . . . . 1 1 . 3 . . Terminals 12 | . 8 . . . . 1 . . 3 . . Botnet 5 | . 3 . . . . . . . 2 . . Skim 6 | . 5 . . . . . . . 1 . . Override 1 | . . . . . . 1 . . . . . Fabricators . | . . . . . . . . . . . . Repair Stations . | . . . . . . . . . . . . Recycling Units 3 | . 2 . . . . . 1 . . . . Reject 3 | . 2 . . . . . 1 . . . . Scanalyzers . | . . . . . . . . . . . . Garrison Access . | . . . . . . . . . . . . Data Cores Recovered . | . . . . . . . . . . . . Used . | . . . . . . . . . . . . Hacking Detections 21 | . 9 . . . 1 4 . 2 5 . . Full Trace Events 3 | . . . . . . 1 . 1 1 . . Feedback Events . | . . . . . . . . . . . . Feedback Blocked . | . . . . . . . . . . . . Robot Schematics Acquired . | . . . . . . . . . . . . Robots Built . | . . . . . . . . . . . . Authchips . | . . . . . . . . . . . . Time . | . . . . . . . . . . . . Total Robot Build Rating . | . . . . . . . . . . . . Part Schematics Acquired 2 | . 2 . . . . . . . . . . Parts Built . | . . . . . . . . . . . . Authchips . | . . . . . . . . . . . . Time . | . . . . . . . . . . . . Total Part Build Rating . | . . . . . . . . . . . . Part Studies Acquired . | . . . . . . . . . . . . Parts Repaired 1 | . . . . . . . . . 1 . . Time 108 | . . . . . . . . . 108 . . Parts Recycled . | . . . . . . . . . . . . Recycled Matter . | . . . . . . . . . . . . Retrieved Matter . | . . . . . . . . . . . . Retrieved Components . | . . . . . . . . . . . . Parts Scanalyzed . | . . . . . . . . . . . . Part Schematics Acquired . | . . . . . . . . . . . . Parts Damaged . | . . . . . . . . . . . . Bothacking | -11 -10 -10 -10 -9 -8 -8 -8 -8 -7 -7 -7 ------------ Run | Yrd Mat Min Exi Min Mat Gar Mat Gar Fac Low Low Used RIF Installer . | . . . . . . . . . . . . Robots Hacked . | . . . . . . . . . . . . Non-combat . | . . . . . . . . . . . . Combat . | . . . . . . . . . . . . Robot Hacks Applied . | . . . . . . . . . . . . Relay Couplers Released 42 | . . . . . . 30 . 12 . . . Machine Destruction 38 | . . . . . . 26 . 12 . . . Programmers 4 | . . . . . . 4 . . . . . Fabnet Peak Effective % . | . . . . . . . . . . . . Robots Rewired 3 | . . . . . . 3 . . . . . Allies Hacked . | . . . . . . . . . . . . Hacks Repelled . | . . . . . . . . . . . . Allies | -11 -10 -10 -10 -9 -8 -8 -8 -8 -7 -7 -7 -------- Run | Yrd Mat Min Exi Min Mat Gar Mat Gar Fac Low Low Total Allies 3 | . . . . . . 3 . . . . . Largest Group 3 | . . . . . . 3 . . . . . Highest-Rated Group 79 | . . . . . . 79 . . . . . Highest-Rated Ally 39 | . . . . . . 39 . . . . . Initial Warlord ECA Mod 14 | . . . . . . . 10 10 14 14 14 Total Orders . | . . . . . . . . . . . . Ally Attacks 57 | . . . . . . 29 . 28 . . . Total Damage 1929 | . . . . . . 455 . 1474 . . . Kills 15 | . . . . . . 4 . 11 . . . Allies Corrupted . | . . . . . . . . . . . . Allies Melted . | . . . . . . . . . . . . Turrets Deployed 3 | . . . 1 . . . . 2 . . . Intel | -11 -10 -10 -10 -9 -8 -8 -8 -8 -7 -7 -7 ------- Run | Yrd Mat Min Exi Min Mat Gar Mat Gar Fac Low Low Active Infowar (turns) 5678 | 41 1599 521 . 354 181 63 . . 1843 778 298 Sensors 2919 | . . . . . . . . . 1843 778 298 Terrain 710 | . . 112 . 354 181 63 . . . . . Seismic 2049 | 41 1599 409 . . . . . . . . . Machine Analysis 1230 | . . . . . . . . . 1230 . . Robot Analysis Total . | . . . . . . . . . . . . Derelict Logs Recovered 2 | . . 1 . . . . . . . 1 . Drone Launches . | . . . . . . . . . . . . Drone Recoveries . | . . . . . . . . . . . . Exploration | -11 -10 -10 -10 -9 -8 -8 -8 -8 -7 -7 -7 ------------- Run | Yrd Mat Min Exi Min Mat Gar Mat Gar Fac Low Low Turns Passed 9404 | 123 1614 926 573 385 186 1547 32 978 1847 895 298 Spaces Moved 4110 | 60 667 434 354 106 54 716 13 502 845 241 118 Core 61 | 1 . . . . . . . 15 . 37 8 Treads 2649 | 59 667 434 354 106 54 716 13 17 . 119 110 Legs 1294 | . . . . . . . . 364 845 85 . Wheels . | . . . . . . . . . . . . Hover 106 | . . . . . . . . 106 . . . Flight . | . . . . . . . . . . . . Fastest Speed 50 | 50 160 160 160 160 167 160 240 112 120 240 50 Average Speed 179 | 158 160 160 160 186 210 178 240 135 183 343 237 Slowest Speed 800 | 160 160 160 160 240 250 240 240 500 190 700 800 Overloaded Moves . | . . . . . . . . . . . . Propulsion Burnouts . | . . . . . . . . . . . . Robots Hopped . | . . . . . . . . . . . . Potential Cave-ins . | . . . . . . . . . . . . Cave-ins Triggered . | . . . . . . . . . . . . Time Travels 1 | . . . . . . . . . . . 1 Exploration Rate (%) 43 | 5 98 78 71 25 10 93 3 66 16 38 24 Regions Visited 11 Branch Regions 5 Pre-discovered Areas 4 | . 2 . 1 . . . . . . 1 . Known Exits Taken 4 | . 1 . . . 1 . 1 . 1 . . Unknown Exits Taken 5 | 1 . 1 1 1 . . . . . 1 . Scrap Searched 3 | . . 1 . . . . . . . 2 . Spaces Dug 98 | . 3 . . . 7 63 . 10 15 . . Terrain Destroyed 304 | . 3 . . 73 18 157 . 24 15 14 . Melee 31 | . 3 . . . . 4 . 9 15 . . Projectile . | . . . . . . . . . . . . AOE 273 | . . . . 73 18 153 . 15 . 14 . Terrain Rammed . | . . . . . . . . . . . . Walls Destroyed . | . . . . . . . . . . . . Machines Disabled . | . . . . . . . . . . . . Actions | -11 -10 -10 -10 -9 -8 -8 -8 -8 -7 -7 -7 --------- Run | Yrd Mat Min Exi Min Mat Gar Mat Gar Fac Low Low Total 5552 | 77 1132 561 362 278 107 879 13 699 1032 280 132 Wait 737 | 2 370 26 . 155 27 31 . 64 57 2 3 Move 4102 | 59 666 433 353 106 54 715 13 501 844 240 118 Hop . | . . . . . . . . . . . . Pick Up 85 | 5 15 13 4 . 2 9 . 11 21 4 1 Fast Attach 40 | 6 . 1 . . 5 5 . 12 7 3 1 Attach 35 | 1 2 7 . 2 2 2 . 4 5 8 2 Detach 3 | . . . 1 . . . . . 1 1 . Swap 58 | . 14 4 2 4 6 4 . 10 9 5 . Drop 78 | . 15 10 2 1 . 4 . 18 23 1 4 Fire 178 | 4 42 60 . 5 10 31 . 21 1 3 1 Melee 173 | . 7 7 . 4 1 40 . 35 64 13 2 Ram . | . . . . . . . . . . . . Kick . | . . . . . . . . . . . . Crush 4 | . 1 . . 1 . 2 . . . . . Escape Stasis 23 | . . . . . . . . 23 . . . Rewire 36 | . . . . . . 36 . . . . . Trap . | . . . . . . . . . . . . Miscellaneous . | . . . . . . . . . . . . Route ------- -11/Scrapyard -10/Materials (discovered 6 exits: *Mat x3 / *Min x2 / *Sub) -10/Mines (discovered 4 exits: *Mat x2 / *Exi / Sub) -10/Exiles -9/Mines -8/Materials (discovered 4 exits: Fac x3 / Gar) -8/Garrison (discovered 3 exits: *Mat x3) -8/Materials (discovered 2 exits: Fac / Gar) -8/Garrison (discovered 2 exits: *Fac x2) -7/Factory -7/Lower Caves -7/Lower Caves History --------- Turn | Location | Event 37 | -11/Scrapyard | Discovered new exit (range 16) 124 | -11/Scrapyard | Entered Materials 314 | -10/Materials | Build established: Mutant 528 | -10/Materials | Discovered new exit (range 5) 570 | -10/Materials | Identified exit to Mines 694 | -10/Materials | Discovered new exit (range 3) 1107 | -10/Materials | Discovered new exit (range 3) 1120 | -10/Materials | Identified exit to Materials 1204 | -10/Materials | Identified exit to Subcaves 1204 | -10/Materials | Learned location of 2 exits from Materials 1290 | -10/Materials | Central database locked down 1409 | -10/Materials | Learned location of Recycling (-7) 1460 | -10/Materials | Learned location of 2 exits from Mines 1499 | -10/Materials | Learned 4 Subcaves zone layouts 1526 | -10/Materials | Learned location of 2 exits from Materials 1608 | -10/Materials | Learned Storage stockpile data 1664 | -10/Materials | Learned 2 Materials zone layouts 1738 | -10/Materials | Entered Mines 1823 | -10/Mines | Found a damaged Exp. Sensor Array with a note attached 1827 | -10/Mines | Found Prototype Device 1827 | -10/Mines | Identified Exp. Sensor Array 1936 | -10/Mines | Learned Materials garrison access intel 1971 | -10/Mines | Assembled infested the area 1976 | -10/Mines | Assisted by a Guerilla fighting off Assembled 2018 | -10/Mines | Core integrity fell below 50% 2072 | -10/Mines | Found DCF Scrap (12 items) 2085 | -10/Mines | System corruption reached 10% 2351 | -10/Mines | Core integrity fell below 20% 2526 | -10/Mines | Met a Derelict shopkeep closing up shop 2657 | -10/Mines | Deemed a non-threat by the Exiles lab entrance 2657 | -10/Mines | Discovered new exit (range 5) 2664 | -10/Mines | Entered Exiles 2708 | -10/Exiles | Met 8R-AWN 2735 | -10/Exiles | Met EX-HEX 2811 | -10/Exiles | Met EX-DEC 2839 | -10/Exiles | Learned location of Zion (-6) 2962 | -10/Exiles | Met EX-BIN 2984 | -10/Exiles | Aligned with FarCom system 2986 | -10/Exiles | Given EX-Vault access code 3023 | -10/Exiles | Opened EX-Vault 3032 | -10/Exiles | Found Deploy-a-Sentry 3035 | -10/Exiles | DAS Turret deployed 3037 | -10/Exiles | Found Deploy-a-Sentry 3040 | -10/Exiles | Found Deploy-a-Sentry 3042 | -10/Exiles | Found Chronowheel 3102 | -10/Exiles | Warned to stay clear of 0b10 Research branches 3222 | -10/Exiles | Discovered new exit (range 10) 3237 | -10/Exiles | Stole two prototypes: Chronowheel, Deploy-a-Sentry 3237 | -10/Exiles | Entered Mines 3288 | -9/Mines | Found a Scrap Suit stashed away for nefarious purposes 3574 | -9/Mines | Build established: Skirmisher 3603 | -9/Mines | Discovered new exit (range 9) 3622 | -9/Mines | Entered Materials 3622 | -8/Materials | Evolved 4 slots: Propulsion x2, Utility x2 3623 | -8/Materials | Identified exit to Factory 3625 | -8/Materials | Loaded intel: 1 garrison access location 3754 | -8/Materials | Garrison activated, responded to threat 3808 | -8/Materials | Identified exit to Garrison 3808 | -8/Materials | Entered Garrison 3837 | -8/Garrison | Lost 4 parts (2p1n1w) 3936 | -8/Garrison | Triggered checkpoint 3964 | -8/Garrison | Garrison Relay disabled 4026 | -8/Garrison | Triggered checkpoint 4086 | -8/Garrison | Triggered checkpoint 4172 | -8/Garrison | Build established: Assassin 4185 | -8/Garrison | Discovered new exit (range 10) 4266 | -8/Garrison | Triggered checkpoint 4305 | -8/Garrison | Garrison Relay disabled 4477 | -8/Garrison | Triggered checkpoint 4672 | -8/Garrison | Triggered checkpoint 4683 | -8/Garrison | Discovered new exit (range 15) 4743 | -8/Garrison | Triggered checkpoint 4800 | -8/Garrison | Discovered new exit (range 15) 5024 | -8/Garrison | Identified exit to Materials 5046 | -8/Garrison | Build established: Scavenger-Mutant 5051 | -8/Garrison | Core integrity fell below 50% 5123 | -8/Garrison | Garrison Relay disabled 5186 | -8/Garrison | Garrison Relay disabled 5196 | -8/Garrison | Garrison Relay disabled 5329 | -8/Garrison | Discovered exit to Materials (range 14) 5329 | -8/Garrison | Discovered exit to Materials (range 37) 5329 | -8/Garrison | Discovered exit to Materials (range 59) 5355 | -8/Garrison | Entered Materials 5387 | -8/Materials | Identified exit to Garrison 5387 | -8/Materials | Entered Garrison 5433 | -8/Garrison | DAS Turret deployed 5567 | -8/Garrison | Triggered checkpoint 5580 | -8/Garrison | Garrison Relay disabled 5663 | -8/Garrison | Triggered checkpoint 5667 | -8/Garrison | Triggered checkpoint 5668 | -8/Garrison | DAS Turret deployed 5710 | -8/Garrison | Lost 3 parts (1n1u1w) 5784 | -8/Garrison | Learned Factory security intel 5791 | -8/Garrison | Triggered checkpoint 5848 | -8/Garrison | Garrison Relay disabled 5872 | -8/Garrison | Discovered exit to Factory (range 10) 6173 | -8/Garrison | Triggered checkpoint 6222 | -8/Garrison | Garrison Relay disabled 6352 | -8/Garrison | Discovered exit to Factory (range 3) 6365 | -8/Garrison | Entered Factory 6365 | -7/Factory | Evolved 2 slots: Utility x2 6367 | -7/Factory | FarCom data flow suspended 6979 | -7/Factory | Repaired Faulty Exp. Sensor Array 7030 | -7/Factory | Discovered new exit (range 15) 7668 | -7/Factory | Identified exit to Lower Caves 8026 | -7/Factory | Garrison activated, responded to threat 8212 | -7/Factory | Entered Lower Caves 8213 | -7/Lower Caves | System corruption reached 10% 8259 | -7/Lower Caves | Build established: Gladiator 8264 | -7/Lower Caves | Lost 5 parts (1p3n1u) 8363 | -7/Lower Caves | Encountered a Warlord checkpoint 8372 | -7/Lower Caves | Met a Warlord Commander 8373 | -7/Lower Caves | Learned location of Warlord (-4) 8374 | -7/Lower Caves | Warlord Commander delivered Encrypted Comm Array 8377 | -7/Lower Caves | Found Encrypted Comm Array 8706 | -7/Lower Caves | Core integrity fell below 50% 8788 | -7/Lower Caves | Lost 10 parts (1p1n4u4w) 9011 | -7/Lower Caves | Learned location of 1 exit from Proximity Caves 9064 | -7/Lower Caves | Build established: Mutant 9093 | -7/Lower Caves | Discovered new exit (range 4) 9107 | -7/Lower Caves | Entered another Lower Caves area 9342 | -7/Lower Caves | Activated Chronowheel 9342 | -7/Lower Caves | Spacetime reconverged on an earlier point 9396 | -7/Lower Caves | Core integrity fell below 20% 9405 | -7/Lower Caves | Destroyed by G-47 Trooper with Particle Gun Last Messages --------------- 09354_ System corrupted: Energy discharge (-37). 09370_ System corrupted: Imp. Sensor Array rejected. 09370_ Acquired Imp. Sensor Array. 09374_ Lgt. Treads destroyed. 09378_ Imp. Medium Armor Plating destroyed. 09383_ G-50 Soldier destroyed. 09387_ Powered Hammer destroyed. 09391_ Adv. Heat Sink fries itself beyond repair. 09391_ Hvy. Laser fries itself beyond repair. 09393_ 0AM,RF/JNYNKF#PDMV0J,#FGRMF%ZWLDQ6